fUSD/lending_fUSD_20250923
["ID","MTS","AMOUNT","RATE_DAILY","PERIOD"]
[387250709,1758664422119,-525.79,0.00028493,3]
[387250710,1758664422128,-243.58500156,0.00028493,3]
[387250711,1758664422137,-585.89,0.00028493,3]
[387250712,1758664422146,-400.0,0.00028493,3]
[387250713,1758664422155,-1172.14,0.00028493,3]
[387250714,1758664422164,-1162.35,0.00028493,3]
[387250715,1758664422174,-869.19,0.00028493,3]
[387250716,1758664422183,-400.0,0.00028493,3]
[387250717,1758664422192,-853.3,0.00028493,3]
[387250718,1758664422202,-400.0,0.00028493,3]
[387250719,1758664422211,-400.0,0.00028493,3]
[387250720,1758664422220,-684.3,0.00028493,3]
[387250721,1758664422229,-433.77,0.00028493,3]
[387250722,1758664422239,-400.0,0.00028493,3]
[387250723,1758664422248,-451.05,0.00028493,3]
[387250724,1758664422258,-1130.1,0.00028493,3]
[387250725,1758664422267,-1034.82,0.00028493,3]
[387250726,1758664422276,-414.11,0.00028493,3]
[387250727,1758664422285,-400.0,0.00028493,3]
[387250728,1758664422294,-400.0,0.00028493,3]
[387250729,1758664422304,-568.34,0.00028493,3]
[387250730,1758664422314,-497.27,0.00028493,3]
[387250731,1758664422323,-400.0,0.00028493,3]
[387250732,1758664422331,-483.14,0.00028493,3]
[387250733,1758664422341,-400.0,0.00028493,3]
[387250734,1758664422351,-400.0,0.00028493,3]
[387250735,1758664422361,-963.02,0.00028493,3]
[387250736,1758664422371,-442.92,0.00028493,3]
[387250737,1758664422381,-400.0,0.00028493,3]
[387250738,1758664422391,-400.0,0.00028493,3]
[387250739,1758664422400,-419.2,0.00028493,3]
[387250740,1758664422411,-495.44,0.00028493,3]
[387250741,1758664422421,-1113.1,0.00028493,3]
[387250742,1758664422431,-564.87,0.00028493,3]
[387250743,1758664422440,-400.0,0.00028493,3]
[387250744,1758664422450,-442.1,0.00028493,3]
[387250745,1758664422459,-612.62,0.00028493,3]
[387250746,1758664422468,-544.44,0.00028493,3]
[387250747,1758664422478,-553.48,0.00028493,3]
[387250748,1758664422489,-811.92,0.00028493,3]
[387250749,1758664422499,-866.52,0.00028493,3]
[387250750,1758664422508,-400.0,0.00028493,3]
[387250751,1758664422518,-1271.99,0.00028493,3]
[387250752,1758664422528,-555.94,0.00028493,3]
[387250753,1758664422537,-516.66,0.00028493,3]
[387250754,1758664422547,-443.34,0.00028493,3]
[387250755,1758664422556,-460.81,0.00028493,3]
[387250756,1758664422565,-400.0,0.00028493,3]
[387250757,1758664422574,-502.53,0.00028493,3]
[387250758,1758664422583,-505.37,0.00028493,3]
[387250759,1758664422592,-542.19,0.00028493,3]
[387250760,1758664422601,-688.7,0.00028493,3]
[387250761,1758664422611,-1015.44,0.00028493,3]
[387250762,1758664422620,-1292.63,0.00028493,3]
[387250763,1758664422629,-1611.73,0.00028493,3]
[387250764,1758664422638,-637.7,0.00028493,3]
[387250765,1758664422647,-1000.0,0.00028493,3]
[387250766,1758664422656,-660.83,0.00028493,3]
[387250767,1758664422665,-549.84,0.00028493,3]
[387250768,1758664422674,-1262.83,0.00028493,3]
[387250769,1758664422683,-500.0,0.00028493,2]
[387250770,1758664422692,-400.0,0.00028493,3]
[387250771,1758664422701,-511.14,0.00028493,3]
[387250772,1758664422709,-1072.23,0.00028493,3]
[387250773,1758664422719,-435.66,0.00028493,3]
[387250774,1758664422728,-400.0,0.00028493,3]
[387250775,1758664422737,-446.42,0.00028493,3]
[387250776,1758664422746,-956.24,0.00028493,3]
[387250777,1758664422755,-804.81,0.00028493,3]
[387250778,1758664422765,-493.33,0.00028493,3]
[387250779,1758664422774,-400.0,0.00028493,3]
[387250780,1758664422783,-400.0,0.00028493,3]
[387250781,1758664422792,-400.0,0.00028493,3]
[387250782,1758664422801,-425.12,0.00028493,3]
[387250783,1758664422810,-400.0,0.00028493,3]
[387250784,1758664422818,-536.14,0.00028493,3]
[387250785,1758664422828,-400.0,0.00028493,3]
[387250786,1758664422837,-647.53,0.00028493,3]
[387250787,1758664422846,-1446.35,0.00028493,3]
[387250788,1758664423190,-232.44788493,0.00028493,3]
[387250789,1758664423204,-160.64834224,0.00028493,3]
[387250790,1758664423214,-712.76,0.00028493,3]
[387250791,1758664423223,-400.0,0.00028493,3]
[387250792,1758664423232,-400.0,0.00028493,3]
[387250793,1758664423241,-742.51,0.00028493,3]
[387250794,1758664423250,-400.0,0.00028493,3]
[387250795,1758664423259,-497.19228822,0.00028493,3]
[387250796,1758664423269,-609.25,0.00028493,3]
[387250797,1758664423278,-1004.12,0.00028493,3]
[387250798,1758664423288,-400.0,0.00028493,3]
[387250799,1758664423298,-1267.73,0.00028493,3]
[387250800,1758664423307,-196.67568263,0.00028493,3]
[387250801,1758664423316,-1089.2,0.00028493,3]
[387250802,1758664423325,-936.94,0.00028493,3]
[387250803,1758664423335,-400.0,0.00028493,3]
[387250804,1758664423344,-400.0,0.00028493,3]
[387250805,1758664423354,-628.73,0.00028493,3]
[387250806,1758664423363,-792.8,0.00028493,3]
[387250807,1758664423373,-718.2,0.00028493,3]
[387250808,1758664423382,-771.65,0.00028493,3]
[387250809,1758664423391,-735.99,0.00028493,3]
[387250810,1758664423401,-735.82,0.00028493,3]
[387250811,1758664423413,-724.09,0.00028493,3]
[387250812,1758664423423,-400.0,0.00028493,3]
[387250813,1758664423433,-724.51,0.00028493,3]
[387250814,1758664423442,-590.38,0.00028493,3]
[387250815,1758664423452,-704.47,0.00028493,3]
[387250816,1758664423462,-597.65,0.00028493,3]
[387250817,1758664423471,-644.02,0.00028493,3]
[387250818,1758664423480,-490.6,0.00028493,3]
[387250819,1758664423491,-544.45,0.00028493,3]
[387250820,1758664423501,-1124.92,0.00028493,3]
[387250821,1758664423511,-400.98,0.00028493,3]
[387250822,1758664423520,-1607.1,0.00028493,3]
[387250823,1758664423530,-643.25,0.00028493,3]
[387250824,1758664423539,-702.26,0.00028493,3]
[387250825,1758664423548,-623.69,0.00028493,3]
[387250826,1758664423558,-400.0,0.00028493,3]
[387250827,1758664423567,-1080.61,0.00028493,3]
[387250828,1758664423578,-422.24,0.00028493,3]
[387250829,1758664423587,-417.7,0.00028493,3]
[387250830,1758664423597,-909.48,0.00028493,3]
[387250831,1758664423606,-400.0,0.00028493,3]
[387250832,1758664423617,-515.95,0.00028493,3]
[387250833,1758664423627,-400.0,0.00028493,3]
[387250834,1758664423636,-419.15,0.00028493,3]
[387250835,1758664423646,-421.32,0.00028493,3]
[387250836,1758664423655,-1535.1,0.00028493,3]
[387250837,1758664423664,-610.62,0.00028493,3]
[387250838,1758664423674,-400.0,0.00028493,3]
[387250839,1758664423683,-788.82,0.00028493,3]
[387250840,1758664423693,-501.25,0.00028493,3]
[387250841,1758664423703,-400.0,0.00028493,3]
[387250842,1758664423712,-400.0,0.00028493,3]
[387250843,1758664423721,-400.0,0.00028493,3]
[387250844,1758664423731,-400.0,0.00028493,3]
[387250845,1758664423740,-467.58,0.00028493,3]
[387250846,1758664423750,-614.35,0.00028493,3]
[387250847,1758664423760,-387.17,0.00028493,3]
[387250848,1758664423769,-686.69,0.00028493,3]
[387250849,1758664423779,-400.0,0.00028493,3]
[387250850,1758664423788,-1284.73,0.00028493,3]
[387250851,1758664423798,-642.36,0.00028493,3]
[387250852,1758664423807,-400.0,0.00028493,3]
[387250853,1758664423817,-560.54,0.00028493,3]
[387250854,1758664423828,-1073.37,0.00028493,3]
[387250855,1758664423838,-753.1,0.00028493,3]
[387250856,1758664423847,-159.53413736,0.00028493,3]
[387250857,1758664423857,-545.97,0.00028493,3]
[387250858,1758664423868,-400.0,0.00028493,3]
[387250859,1758664423877,-400.0,0.00028493,3]
[387250860,1758664423888,-580.05,0.00028493,3]
[387250861,1758664423898,-1196.06,0.00028493,3]
[387250862,1758664423909,-779.4,0.00028493,3]
[387250863,1758664423920,-1387.31,0.00028493,3]
[387250864,1758664423931,-526.44,0.00028493,3]
[387250865,1758664423941,-914.9,0.00028493,3]
[387250866,1758664423951,-400.0,0.00028493,3]
[387250867,1758664423960,-751.05,0.00028493,3]
[387250868,1758664423969,-10481.21,0.00028493,3]
[387250869,1758664423981,-400.0,0.00028493,3]
[387250870,1758664423991,-585.69,0.00028493,3]
[387250871,1758664424001,-400.0,0.00028493,3]
[387250872,1758664424012,-1984.04,0.00028493,3]
[387250873,1758664424022,-1075.59,0.00028493,3]
[387250874,1758664424031,-1243.9,0.00028493,3]
[387250875,1758664424041,-2675.56,0.00028493,3]
[387250876,1758664424052,-1687.56,0.00028493,3]
[387250877,1758664424062,-603.56,0.00028493,3]
[387250878,1758664424072,-400.0,0.00028493,3]
[387250879,1758664424082,-613.2,0.00028493,3]
[387250880,1758664424091,-1380.17,0.00028493,3]
[387250881,1758664424101,-400.0,0.00028493,3]
[387250882,1758664424111,-400.0,0.00028493,3]
[387250883,1758664424121,-637.31,0.00028493,3]
[387250884,1758664424130,-536.31,0.00028493,3]
[387250885,1758664424140,-1960.16,0.00028493,3]
[387250886,1758664424150,-653.4,0.00028493,3]
[387250887,1758664424159,-400.0,0.00028493,3]
[387250888,1758664424168,-400.0,0.00028493,3]
[387250889,1758664424177,-1811.83,0.00028493,3]
[387250890,1758664424187,-400.0,0.00028493,3]
[387250891,1758664424196,-485.31,0.00028493,3]
[387250892,1758664424205,-609.4,0.00028493,3]
[387250893,1758664424214,-3596.07,0.00028493,3]
[387250894,1758664424223,-1777.36,0.00028493,3]
[387250895,1758664424233,-955.0,0.00028493,3]
[387250896,1758664424242,-1530.13,0.00028493,3]
[387250897,1758664424252,-400.0,0.00028493,3]
[387250898,1758664424261,-1065.12,0.00028493,3]
[387250899,1758664424271,-400.0,0.00028493,3]
[387250900,1758664424280,-624.46,0.00028493,3]
[387250901,1758664424290,-668.62,0.00028493,3]
[387250902,1758664424299,-400.0,0.00028493,3]
[387250903,1758664424308,-766.88,0.00028493,3]
[387250904,1758664424318,-488.82,0.00028493,3]
[387250905,1758664424327,-527.44,0.00028493,3]
[387250906,1758664424337,-1866.98,0.00028493,3]
[387250907,1758664424346,-674.88,0.00028493,3]
[387250908,1758664424356,-507.6,0.00028493,3]
[387250909,1758664424365,-2251.93,0.00028493,3]
[387250910,1758664424375,-1430.39,0.00028493,3]
[387250911,1758664424384,-1005.24,0.00028493,3]
[387250912,1758664424394,-706.55,0.00028493,3]
[387250913,1758664424403,-400.0,0.00028493,3]
[387250914,1758664424415,-471.06,0.00028493,3]
[387250915,1758664424425,-440.49,0.00028493,3]
[387250916,1758664424435,-1632.87,0.00028493,3]
[387250917,1758664424444,-2172.06,0.00028493,3]
[387250918,1758664424455,-1577.53,0.00028493,3]
[387250919,1758664424465,-573.43,0.00028493,3]
[387250920,1758664424474,-1762.21,0.00028493,3]
[387250921,1758664424484,-2598.87,0.00028493,3]
[387250922,1758664424494,-2106.48,0.00028493,3]
[387250923,1758664424503,-2137.16,0.00028493,3]
[387250924,1758664424513,-1633.99,0.00028493,3]
[387250925,1758664424522,-665.33,0.00028493,3]
[387250926,1758664424532,-400.0,0.00028493,3]
[387250927,1758664424541,-507.04,0.00028493,3]
[387250928,1758664424551,-652.14,0.00028493,3]
[387250929,1758664424561,-441.78,0.00028493,3]
[387250930,1758664424570,-2272.09,0.00028493,3]
[387250931,1758664424580,-2095.57,0.00028493,3]
[387250932,1758664424589,-2047.84,0.00028493,3]
[387250933,1758664424599,-425.92,0.00028493,3]
[387250934,1758664424608,-782.31,0.00028493,3]
[387250935,1758664424617,-1845.88,0.00028493,3]
[387250936,1758664424627,-1531.58,0.00028493,3]
[387250937,1758664424636,-1188.08,0.00028493,3]
[387250938,1758664424646,-1490.46,0.00028493,3]
[387250939,1758664424655,-2033.65,0.00028493,3]
[387250940,1758664424664,-2177.65,0.00028493,3]
[387250941,1758664424674,-2728.22,0.00028493,3]
[387250942,1758664424683,-473.36106209,0.00028493,3]
[387250943,1758664424693,-457.97,0.00028493,3]
[387250944,1758664424702,-400.0,0.00028493,3]
[387250945,1758664424712,-1405.11,0.00028493,3]
[387250946,1758664424722,-680.61,0.00028493,3]
[387250947,1758664424732,-1113.08,0.00028493,3]
[387250948,1758664424741,-1415.66,0.00028493,3]
[387250949,1758664424751,-1312.62,0.00028493,3]
[387250950,1758664424760,-1698.64,0.00028493,3]
[387250951,1758664424770,-769.12,0.00028493,3]
[387250952,1758664424780,-1079.65,0.00028493,3]
[387250953,1758664424789,-400.0,0.00028493,3]
[387250954,1758664424798,-916.94,0.00028493,3]
[387250955,1758664424808,-2186.72,0.00028493,3]
[387250956,1758664424818,-546.81,0.00028493,3]
[387250957,1758664424827,-485.45,0.00028493,3]
[387250958,1758664424837,-952.65,0.00028493,3]
[387250959,1758664424846,-643.52,0.00028493,3]
[387250960,1758664424856,-1510.65,0.00028493,3]
[387250961,1758664424865,-1538.99,0.00028493,3]
[387250962,1758664424874,-400.0,0.00028493,3]
[387250963,1758664424884,-400.0,0.00028493,3]
[387250964,1758664424894,-767.66,0.00028493,3]
[387250965,1758664424904,-1183.46,0.00028493,3]
[387250966,1758664424914,-1025.71,0.00028493,3]
[387250967,1758664424924,-1292.75,0.00028493,3]
[387250968,1758664424935,-1576.62,0.00028493,3]
[387250969,1758664424945,-589.78,0.00028493,3]
[387250970,1758664424955,-2168.52,0.00028493,3]
[387250971,1758664424965,-400.0,0.00028493,3]
[387250972,1758664424976,-1248.87,0.00028493,3]
[387250973,1758664424985,-1438.1,0.00028493,3]
[387250974,1758664424995,-801.34,0.00028493,3]
[387250975,1758664425004,-400.0,0.00028493,3]
[387250976,1758664425013,-1989.17,0.00028493,3]
[387250977,1758664425023,-1355.06,0.00028493,3]
[387250978,1758664425033,-1742.92,0.00028493,3]
[387250979,1758664425042,-1035.45,0.00028493,3]
[387250980,1758664425052,-466.56,0.00028493,3]
[387250981,1758664425062,-1515.98,0.00028493,3]
[387250982,1758664425071,-1785.83,0.00028493,3]
[387250983,1758664425081,-635.55,0.00028493,3]
[387250984,1758664425091,-400.0,0.00028493,3]
[387250985,1758664425101,-835.56,0.00028493,3]
[387250986,1758664425110,-1984.29,0.00028493,3]
[387250987,1758664425120,-1716.89,0.00028493,3]
[387250988,1758664425129,-786.93,0.00028493,3]
[387250989,1758664425139,-645.64,0.00028493,3]
[387250990,1758664425148,-400.0,0.00028493,3]
[387250991,1758664425158,-1514.01,0.00028493,3]
[387250992,1758664425167,-2059.55,0.00028493,3]
[387250993,1758664425177,-2306.45,0.00028493,3]
[387250994,1758664425186,-400.0,0.00028493,3]
[387250995,1758664425195,-1545.45,0.00028493,3]
[387250996,1758664425205,-415.79,0.00028493,3]
[387250997,1758664425215,-2095.63,0.00028493,3]
[387250998,1758664425225,-400.0,0.00028493,3]
[387250999,1758664425235,-1430.02,0.00028493,3]
[387251000,1758664425245,-405.04807744,0.00028493,3]
[387251001,1758664425255,-909.31,0.00028493,3]
[387251002,1758664425267,-400.0,0.00028493,3]
[387251003,1758664425276,-1827.73,0.00028493,3]
[387251004,1758664425286,-400.0,0.00028493,3]
[387251005,1758664425295,-690.64,0.00028493,3]
[387251006,1758664425305,-2101.8,0.00028493,3]
[387251007,1758664425314,-966.9,0.00028493,3]
[387251008,1758664425324,-655.71,0.00028493,3]
[387251009,1758664425334,-400.0,0.00028493,3]
[387251010,1758664425343,-1470.41,0.00028493,3]
[387251011,1758664425352,-603.72,0.00028493,3]
[387251012,1758664425362,-5585.99,0.00028493,3]
[387251013,1758664425372,-400.0,0.00028493,3]
[387251014,1758664425381,-400.0,0.00028493,3]
[387251015,1758664425391,-1883.8,0.00028493,3]
[387251016,1758664425400,-1867.36,0.00028493,3]
[387251017,1758664425412,-1963.55,0.00028493,3]
[387251018,1758664425423,-614.58,0.00028493,3]
[387251019,1758664425432,-952.78,0.00028493,3]
[387251020,1758664425442,-400.0,0.00028493,3]
[387251021,1758664425451,-400.0,0.00028493,3]
[387251022,1758664425462,-1560.6,0.00028493,3]
[387251023,1758664425472,-1953.23,0.00028493,3]
[387251024,1758664425482,-1674.22,0.00028493,3]
[387251025,1758664425492,-492.65,0.00028493,3]
[387251026,1758664425502,-924.37,0.00028493,3]
[387251027,1758664425511,-1508.32,0.00028493,3]
[387251028,1758664425521,-1865.08,0.00028493,3]
[387251029,1758664425531,-400.0,0.00028493,3]
[387251030,1758664425541,-1262.69,0.00028493,3]
[387251031,1758664425550,-1344.24,0.00028493,3]
[387251032,1758664425560,-1502.94,0.00028493,3]
[387251033,1758664425710,-1473.52,0.00028493,3]
[387251034,1758664425721,-957.08,0.00028493,3]
[387251035,1758664425730,-528.66,0.00028493,3]
[387251036,1758664425739,-552.31,0.00028493,3]
[387251037,1758664425748,-2161.43,0.00028493,3]
[387251038,1758664425758,-2128.27,0.00028493,3]
[387251039,1758664425767,-943.67,0.00028493,3]
[387251040,1758664425776,-698.14,0.00028493,3]
[387251041,1758664425786,-956.83,0.00028493,3]
[387251042,1758664425795,-400.0,0.00028493,3]
[387251043,1758664425806,-1587.02,0.00028493,3]
[387251044,1758664425816,-428.71,0.00028493,3]
[387251045,1758664425827,-7304.35,0.00028493,3]
[387251046,1758664425839,-1021.78,0.00028493,3]
[387251047,1758664425849,-1854.69,0.00028493,3]
[387251048,1758664425859,-533.26,0.00028493,3]
[387251049,1758664425868,-400.0,0.00028493,3]
[387251050,1758664425878,-675.91,0.00028493,3]
[387251051,1758664425888,-1334.3,0.00028493,3]
[387251052,1758664425897,-447.62,0.00028493,3]
[387251053,1758664425907,-803.81,0.00028493,3]
[387251054,1758664425917,-400.0,0.00028493,3]
[387251055,1758664425927,-2319.15,0.00028493,3]
[387251056,1758664425936,-400.0,0.00028493,3]
[387251057,1758664425945,-1143.73,0.00028493,3]
[387251058,1758664425954,-400.0,0.00028493,3]
[387251059,1758664425965,-1693.96,0.00028493,3]
[387251060,1758664425975,-808.53,0.00028493,3]
[387251061,1758664425984,-1798.02,0.00028493,3]
[387251062,1758664425994,-400.0,0.00028493,3]
[387251063,1758664426003,-400.0,0.00028493,3]
[387251064,1758664426012,-1265.14,0.00028493,3]
[387251065,1758664426022,-493.9,0.00028493,3]
[387251066,1758664426033,-528.22,0.00028493,3]
[387251067,1758664426046,-1501.23,0.00028493,3]
[387251068,1758664426057,-400.0,0.00028493,3]
[387251069,1758664426067,-480.24,0.00028493,3]
[387251070,1758664426077,-400.0,0.00028493,3]
[387251071,1758664426086,-1303.69,0.00028493,3]
[387251072,1758664426095,-400.0,0.00028493,3]
[387251073,1758664426104,-810.26,0.00028493,3]
[387251074,1758664426113,-1157.48,0.00028493,3]
[387251075,1758664426123,-676.36,0.00028493,3]
[387251076,1758664426132,-923.87,0.00028493,3]
[387251077,1758664426141,-865.69,0.00028493,3]
[387251078,1758664426150,-1229.06,0.00028493,3]
[387251079,1758664426160,-645.83,0.00028493,3]
[387251080,1758664426169,-1798.6,0.00028493,3]
[387251081,1758664426178,-549.42,0.00028493,3]
[387251082,1758664426188,-404.28,0.00028493,3]
[387251083,1758664426198,-288.79991597,0.00028493,3]
[387251084,1758664426210,-1589.65,0.00028493,3]
[387251085,1758664426219,-559.17,0.00028493,3]
[387251086,1758664426230,-1587.3,0.00028493,3]
[387251087,1758664426240,-1163.2,0.00028493,3]
[387251088,1758664426250,-536.97,0.00028493,3]
[387251089,1758664426261,-400.0,0.00028493,2]
[387251090,1758664426271,-2080.14,0.00028493,3]
[387251091,1758664426280,-529.51,0.00028493,3]
[387251092,1758664426289,-931.36,0.00028493,3]
[387251093,1758664426299,-1619.96,0.00028493,3]
[387251094,1758664426308,-1000.0,0.00028493,3]
[387251095,1758664426317,-453.19,0.00028493,3]
[387251096,1758664426326,-948.64,0.00028493,3]
[387251097,1758664426335,-400.0,0.00028493,3]
[387251098,1758664426344,-13739.2,0.00028493,3]
[387251099,1758664426353,-1551.51,0.00028493,3]
[387251100,1758664426363,-1871.37,0.00028493,3]
[387251101,1758664426372,-618.32,0.00028493,3]
[387251102,1758664426381,-458.91,0.00028493,3]
[387251103,1758664426390,-657.58,0.00028493,3]
[387251104,1758664426399,-400.0,0.00028493,3]
[387251105,1758664426408,-1848.91,0.00028493,3]
[387251106,1758664426421,-1506.02,0.00028493,3]
[387251107,1758664426431,-400.0,0.00028493,3]
[387251108,1758664426440,-514.97,0.00028493,3]
[387251109,1758664426449,-400.0,0.00028493,3]
[387251110,1758664426461,-477.74,0.00028493,3]
[387251111,1758664426470,-400.0,0.00028493,3]
[387251112,1758664426479,-1395.95,0.00028493,3]
[387251113,1758664426490,-400.0,0.00028493,3]
[387251114,1758664426500,-1575.42,0.00028493,3]
[387251115,1758664426509,-1347.82,0.00028493,3]
[387251116,1758664426519,-400.0,0.00028493,3]
[387251117,1758664426528,-1495.51,0.00028493,3]
[387251118,1758664426538,-525.32,0.00028493,3]
[387251119,1758664426547,-1907.27,0.00028493,3]
[387251120,1758664426556,-202.07786923,0.00028493,3]
[387251121,1758664426564,-1023.51,0.00028493,3]
[387251122,1758664426573,-432.69,0.00028493,3]
[387251123,1758664426582,-1351.02,0.00028493,3]
[387251124,1758664426591,-880.27,0.00028493,3]
[387251125,1758664426601,-548.79,0.00028493,3]
[387251126,1758664426610,-1903.53,0.00028493,3]
[387251127,1758664426619,-786.35,0.00028493,3]
[387251128,1758664426629,-451.0,0.00028493,3]
[387251129,1758664426640,-702.83,0.00028493,3]
[387251130,1758664426651,-2096.52,0.00028493,3]
[387251131,1758664426661,-1019.97,0.00028493,3]
[387251132,1758664426670,-475.27,0.00028493,3]
[387251133,1758664426679,-696.03,0.00028493,3]
[387251134,1758664426689,-419.83,0.00028493,3]
[387251135,1758664426698,-529.1,0.00028493,3]
[387251136,1758664426708,-1931.45,0.00028493,3]
[387251137,1758664426717,-601.48,0.00028493,3]
[387251138,1758664426726,-2252.15,0.00028493,3]
[387251139,1758664426736,-450.0,0.00028493,3]
[387251140,1758664426745,-536.36,0.00028493,3]
[387251141,1758664426754,-516.75,0.00028493,3]
[387251142,1758664426763,-2161.44,0.00028493,3]
[387251143,1758664426772,-620.93,0.00028493,3]
[387251144,1758664426781,-803.72,0.00028493,3]
[387251145,1758664426790,-2098.36,0.00028493,3]
[387251146,1758664426799,-1607.31,0.00028493,3]
[387251147,1758664426808,-3658.05,0.00028493,3]
[387251148,1758664426818,-1788.33,0.00028493,3]
[387251149,1758664426827,-998.12,0.00028493,3]
[387251150,1758664426836,-1550.42,0.00028493,3]
[387251151,1758664426845,-1221.01,0.00028493,3]
[387251152,1758664426855,-1421.09,0.00028493,3]
[387251153,1758664426864,-1581.33,0.00028493,3]
[387251154,1758664426874,-1796.87,0.00028493,3]
[387251155,1758664426883,-510.18,0.00028493,3]
[387251156,1758664426892,-515.25,0.00028493,3]
[387251157,1758664426901,-400.0,0.00028493,3]
[387251158,1758664426911,-1366.95,0.00028493,3]
[387251159,1758664426920,-1983.1,0.00028493,3]
[387251160,1758664426929,-566.08,0.00028493,3]
[387251161,1758664426938,-1644.62,0.00028493,3]
[387251162,1758664426947,-703.73,0.00028493,3]
[387251163,1758664426956,-712.53,0.00028493,3]
[387251164,1758664426966,-421.65,0.00028493,3]
[387251165,1758664426975,-838.91,0.00028493,3]
[387251166,1758664426985,-400.0,0.00028493,3]
[387251167,1758664426994,-1691.7,0.00028493,3]
[387251168,1758664427003,-1746.85,0.00028493,3]
[387251169,1758664427012,-586.14,0.00028493,3]
[387251170,1758664427021,-2088.64,0.00028493,3]
[387251171,1758664427031,-400.0,0.00028493,3]
[387251172,1758664427040,-1208.42,0.00028493,3]
[387251173,1758664427049,-706.04,0.00028493,3]
[387251174,1758664427058,-1530.19,0.00028493,3]
[387251175,1758664427068,-12997.44,0.00028493,3]
[387251176,1758664427077,-2924.19,0.00028493,3]
[387251177,1758664427086,-2130.52,0.00028493,3]
[387251178,1758664427096,-1462.57,0.00028493,3]
[387251179,1758664427105,-1005.85,0.00028493,3]
[387251180,1758664427115,-7446.15,0.00028493,3]
[387251181,1758664427124,-621.18,0.00028493,3]
[387251182,1758664427133,-1544.2,0.00028493,3]
[387251183,1758664427143,-644.91,0.00028493,3]
[387251184,1758664427152,-613.5,0.00028493,3]
[387251185,1758664427161,-644.94,0.00028493,3]
[387251186,1758664427170,-924.07,0.00028493,3]
[387251187,1758664427179,-413.72,0.00028493,3]
[387251188,1758664427188,-1218.93,0.00028493,3]
[387251189,1758664427197,-472.05,0.00028493,3]
[387251190,1758664427206,-525.7,0.00028493,3]
[387251191,1758664427214,-400.0,0.00028493,3]
[387251192,1758664427222,-431.76,0.00028493,3]
[387251193,1758664427231,-964.09,0.00028493,3]
[387251194,1758664427240,-501.11,0.00028493,3]
[387251195,1758664427249,-523.06,0.00028493,3]
[387251196,1758664427259,-2926.65,0.00028493,3]
[387251197,1758664427268,-400.0,0.00028493,3]
[387251198,1758664427277,-1583.89,0.00028493,3]
[387251199,1758664427287,-684.39,0.00028493,3]
[387251200,1758664427295,-1089.09,0.00028493,3]
[387251201,1758664427304,-400.0,0.00028493,3]
[387251202,1758664427313,-453.77,0.00028493,3]
[387251203,1758664427322,-564.83,0.00028493,3]
[387251204,1758664427331,-814.85,0.00028493,3]
[387251205,1758664427340,-10315.68,0.00028493,3]
[387251206,1758664427350,-873.79,0.00028493,3]
[387251207,1758664427359,-548.44,0.00028493,3]
[387251208,1758664427368,-1681.09,0.00028493,3]